lending/lending_fUSD_20251107
["ID","MTS","AMOUNT","RATE_DAILY","PERIOD"]
[393354207,1762511446435,-25361.98694477,0.0002,2]
[393354208,1762511446444,-180379.71891958,0.0002,5]
[393354209,1762511446453,-8300.0,0.0002,4]
[393354210,1762511446463,-3950.0,0.0002,2]
[393354211,1762511446472,-462.96784881,0.0002,20]
[393354212,1762511446482,-2048.58691759,0.0002,14]
[393354213,1762511446491,-7225.11979424,0.0002,2]
[393354214,1762511446500,-1283.0616566,0.0002,2]
[393354215,1762511446509,-7310.04820368,0.0002,2]
[393354216,1762511446518,-2168.59057824,0.0002,3]
[393354217,1762511446527,-10163.70752487,0.0002,2]
[393354218,1762511446537,-1035.63503276,0.0002,2]
[393354219,1762511446545,-2838.06808516,0.0002,2]
[393354220,1762511446555,-8731.3976056,0.0002,2]
[393354221,1762511446564,-500.0,0.0002,2]
[393354222,1762511446573,-154.853143,0.0002,7]
[393354223,1762511446582,-151.0,0.0002,7]
[393354224,1762511446591,-151.0,0.0002,7]
[393354225,1762511446600,-152.751498,0.0002,7]
[393354226,1762511446609,-151.0,0.0002,7]
[393354227,1762511446618,-151.0,0.0002,7]
[393354228,1762511446627,-151.0,0.0002,7]
[393354229,1762511446637,-151.0,0.0002,7]
[393354230,1762511446646,-477.99034883,0.0002,7]
[393354231,1762511446655,-151.0,0.0002,7]
[393354232,1762511446664,-151.0,0.0002,7]
[393354233,1762511446673,-170.812782,0.0002,7]
[393354234,1762511446683,-151.0,0.0002,7]
[393354235,1762511446692,-212.890596,0.0002,7]
[393354236,1762511446703,-151.0,0.0002,7]
[393354237,1762511446712,-151.0,0.0002,7]
[393354238,1762511446721,-151.0,0.0002,7]
[393354239,1762511446730,-151.0,0.0002,7]
[393354240,1762511446739,-161.013308,0.0002,7]
[393354241,1762511446748,-161.013308,0.0002,7]
[393354242,1762511446757,-184.723214,0.0002,7]
[393354243,1762511446766,-161.013308,0.0002,7]
[393354244,1762511446775,-161.013308,0.0002,7]
[393354245,1762511446785,-164.771008,0.0002,7]
[393354246,1762511446794,-236.806063,0.0002,7]
[393354247,1762511446803,-151.0,0.0002,7]
[393354248,1762511446812,-151.0,0.0002,7]
[393354249,1762511446822,-171.130794,0.0002,7]
[393354250,1762511446831,-151.0,0.0002,7]
[393354251,1762511446840,-151.0,0.0002,7]
[393354252,1762511446850,-151.000008,0.0002,7]
[393354253,1762511446865,-151.0,0.0002,7]
[393354254,1762511446875,-151.0,0.0002,7]
[393354255,1762511446884,-154.619845,0.0002,7]
[393354256,1762511446893,-152.690055,0.0002,7]
[393354257,1762511446902,-151.0,0.0002,7]
[393354258,1762511446911,-151.0,0.0002,7]
[393354259,1762511446921,-151.0,0.0002,7]
[393354260,1762511446930,-151.0,0.0002,7]
[393354262,1762511446939,-151.0,0.0002,7]
[393354264,1762511446948,-151.0,0.0002,7]
[393354266,1762511446960,-661.272482,0.0002,7]
[393354268,1762511446970,-661.272482,0.0002,7]
[393354269,1762511446979,-661.272482,0.0002,7]
[393354270,1762511446988,-661.272482,0.0002,7]
[393354271,1762511446998,-170.209544,0.0002,7]
[393354272,1762511447007,-151.0,0.0002,7]
[393354273,1762511447016,-151.0,0.0002,7]
[393354274,1762511447026,-152.888891,0.0002,7]
[393354275,1762511447036,-151.0,0.0002,7]
[393354276,1762511447045,-151.0,0.0002,7]
[393354277,1762511447054,-151.0,0.0002,7]
[393354278,1762511447073,-155.267409,0.0002,7]
[393354279,1762511447082,-151.0,0.0002,7]
[393354280,1762511447091,-151.0,0.0002,7]
[393354281,1762511447101,-231.493995,0.0002,7]
[393354282,1762511447110,-151.0,0.0002,7]
[393354283,1762511447119,-151.0,0.0002,7]
[393354284,1762511447128,-151.0,0.0002,7]
[393354285,1762511447137,-368.375632,0.0002,7]
[393354286,1762511447147,-368.375632,0.0002,7]
[393354287,1762511447156,-368.375632,0.0002,7]
[393354288,1762511447165,-368.375632,0.0002,7]
[393354289,1762511447175,-187.739093,0.0002,7]
[393354290,1762511447185,-3451.281288,0.0002,7]
[393354291,1762511447195,-3451.281288,0.0002,7]
[393354292,1762511447204,-3451.281288,0.0002,7]
[393354293,1762511447214,-3451.281288,0.0002,7]
[393354294,1762511447223,-159.507872,0.0002,7]
[393354295,1762511447232,-151.0,0.0002,7]
[393354296,1762511447242,-151.0,0.0002,7]
[393354297,1762511447251,-209.475628,0.0002,7]
[393354298,1762511447259,-151.0,0.0002,7]
[393354299,1762511447269,-151.0,0.0002,7]
[393354300,1762511447277,-1630.140865,0.0002,7]
[393354301,1762511447287,-195.190223,0.0002,7]
[393354302,1762511447296,-151.0,0.0002,7]
[393354303,1762511447305,-1630.140865,0.0002,7]
[393354304,1762511447314,-1630.140865,0.0002,7]
[393354305,1762511447323,-1630.140865,0.0002,7]
[393354306,1762511447333,-151.0,0.0002,7]
[393354307,1762511447342,-151.0,0.0002,7]
[393354308,1762511447352,-151.0,0.0002,7]
[393354309,1762511447360,-1263.677778,0.0002,7]
[393354310,1762511447369,-1263.677778,0.0002,7]
[393354311,1762511447379,-1263.677778,0.0002,7]
[393354312,1762511447388,-1263.677778,0.0002,7]
[393354313,1762511447397,-151.0,0.0002,7]
[393354314,1762511447406,-173.854535,0.0002,7]
[393354315,1762511447416,-455.158256,0.0002,7]
[393354316,1762511447429,-455.158256,0.0002,7]
[393354317,1762511447438,-455.158256,0.0002,7]
[393354318,1762511447447,-455.158256,0.0002,7]
[393354319,1762511447456,-153.823368,0.0002,7]
[393354320,1762511447465,-151.0,0.0002,7]
[393354321,1762511447474,-166.0127,0.0002,7]
[393354322,1762511447483,-151.0,0.0002,7]
[393354323,1762511447493,-271.678733,0.0002,7]
[393354324,1762511447502,-151.0,0.0002,7]
[393354325,1762511447511,-151.0,0.0002,7]
[393354326,1762511447520,-151.0,0.0002,7]
[393354327,1762511447529,-271.678733,0.0002,7]
[393354328,1762511447538,-151.0,0.0002,7]
[393354329,1762511447548,-271.678733,0.0002,7]
[393354330,1762511447557,-151.0,0.0002,7]
[393354331,1762511447566,-271.678733,0.0002,7]
[393354332,1762511447575,-151.0,0.0002,7]
[393354333,1762511447585,-208.051066,0.0002,7]
[393354334,1762511447595,-9007.98855927,0.0002001,2]
[393354335,1762511447604,-318.06,0.00020019,2]
[393354336,1762511447613,-1252.0,0.00020024,2]
[393354337,1762511447626,-500.0,0.00020052,2]
[393354338,1762511447635,-656.0,0.00020052,2]
[393354339,1762511447645,-529.0,0.00020052,2]
[393354340,1762511447656,-410.96302396,0.00020058,2]
[393354341,1762511447666,-2920.7483985,0.00020066,2]
[393354342,1762511447677,-1254.16358819,0.00020068,2]
[393354343,1762511447686,-1500.0,0.00020068,2]
[393354344,1762511447696,-1500.0,0.00020068,2]
[393354345,1762511447706,-1022.61319105,0.00020068,2]
[393354346,1762511447716,-892.14835424,0.00020068,2]
[393354347,1762511447726,-166.66,0.00020075,2]
[393354348,1762511447736,-504.54,0.00020076,2]
[393354349,1762511447746,-62297.0588818,0.00020077,2]
[393354350,1762511447757,-1000.0,0.00020116,2]
[393354351,1762511447768,-1023.22717164,0.00020164,2]
[393354352,1762511447777,-2361.8306267,0.00020164,2]
[393354353,1762511447787,-677.66,0.00020187,2]
[393354354,1762511447796,-500.0,0.00020189,2]
[393354355,1762511447806,-656.0,0.00020189,2]
[393354356,1762511447816,-529.0,0.00020189,2]
[393354357,1762511447829,-390.28659807,0.00020199,2]
[393354358,1762511447838,-739.0,0.0002022,2]
[393354359,1762511447847,-3897.53483,0.0002023,2]
[393354360,1762511447857,-218.34005802,0.00020326,2]
[393354361,1762511447867,-656.0,0.00020326,2]
[393354362,1762511447876,-529.0,0.00020326,2]
[393354363,1762511447888,-739.0,0.00020361,2]
[393354364,1762511447898,-513.74679932,0.00020421,2]
[393354365,1762511447908,-1092.12362524,0.00020421,2]
[393354366,1762511447918,-1144.81873748,0.00020421,2]
[393354367,1762511447930,-1000.0,0.00020421,2]
[393354368,1762511447939,-1000.0,0.00020421,2]
[393354369,1762511447952,-1000.0,0.00020421,2]
[393354370,1762511447962,-1000.0,0.00020421,2]
[393354371,1762511447972,-656.0,0.00020463,2]
[393354372,1762511447982,-529.0,0.00020463,2]
[393354373,1762511447993,-411.37398698,0.00020493,2]
[393354374,1762511448002,-739.0,0.00020493,2]
[393354375,1762511448012,-2000.0,0.000205,2]
[393354376,1762511448023,-527.72,0.00020503,2]
[393354377,1762511448036,-21311.58,0.00020548,2]
[393354378,1762511448046,-151.0,0.00020548,7]
[393354379,1762511448056,-151.0,0.00020548,7]
[393354380,1762511448065,-600.0,0.00020548,2]
[393354381,1762511448075,-151.0,0.00020548,7]
[393354382,1762511448085,-656.0,0.000206,2]
[393354383,1762511448095,-529.0,0.000206,2]
[393354384,1762511448104,-2087.9034712,0.00020616,2]
[393354385,1762511448114,-1560.77369819,0.00020616,2]
[393354386,1762511448124,-150.0,0.00020669,5]
[393354387,1762511448134,-150.0,0.00020669,5]
[393354388,1762511448143,-266.75267811,0.00020669,5]
[393354389,1762511448153,-166.66,0.00020678,2]
[393354390,1762511448162,-22351.71985182,0.000207,2]
[393354391,1762511448173,-656.0,0.00020737,2]
[393354392,1762511448182,-529.0,0.00020737,2]
[393354393,1762511448192,-1000.0,0.00020752,2]
[393354394,1762511448201,-1000.0,0.00020795,2]
[393354395,1762511448211,-656.0,0.00020874,2]
[393354396,1762511448220,-529.0,0.00020874,2]
[393354397,1762511448232,-2800.4005328,0.00020912,2]
[393354398,1762511448241,-264.0,0.00020919,2]
[393354399,1762511448251,-623.0,0.00020939,2]
[393354400,1762511448260,-22183.76,0.00020951,2]
[393354401,1762511448270,-9999.99,0.00020951,2]
[393354402,1762511448279,-14294.88,0.00020951,2]
[393354403,1762511448290,-1500.0,0.00020968,2]
[393354404,1762511448299,-1373.81755517,0.00020968,2]
[393354405,1762511448309,-785.10835385,0.00020968,2]
[393354406,1762511448535,-279.86724375,0.00020968,2]
[393354407,1762511448546,-435.0244024,0.00020968,2]
[393354408,1762511448555,-180.07142982,0.00020968,2]
[393354409,1762511448588,-130.7875969,0.00020968,2]
[393354410,1762511448597,-205.71117495,0.00020996,2]
[393354411,1762511448606,-289.62520218,0.00021,2]
[393354412,1762511448699,-151.0,0.00018408,2]
[393354413,1762511448709,-10389.91296625,0.00021,2]
[393354414,1762511448720,-636.23305801,0.00021,2]
[393354415,1762511448735,-11094.0,0.00021,2]
[393354416,1762511448747,-16390.26017256,0.00021,2]
[393354417,1762511448762,-1522.426785,0.00021,2]
[393354418,1762511448774,-841.5705,0.00021,2]
[393354432,1762512000150,188.62,0.00026818,120]
[393354433,1762512000336,188.62,0.00029256,120]
[393354434,1762512255746,433.7,0.00038692,30]
[393354435,1762512423923,151.80126587,0.00038692,30]
[393354453,1762512632384,-557.43795097,0.00017798,2]
[393354454,1762512632394,-195.0,0.00017804,2]
[393354455,1762512632406,-151.0,0.00017811,2]
[393354456,1762512632416,-156.587,0.00017811,2]
[393354457,1762512632431,-157.72711831,0.00017811,2]
[393354458,1762512632440,-300.0,0.00017897,2]
[393354459,1762512632451,-300.0,0.00017897,2]
[393354460,1762512632460,-1200.0,0.00017897,2]
[393354461,1762512632470,-638.7973632,0.00017897,2]
[393354462,1762512632481,-16401.40167749,0.00017898,2]
[393354463,1762512632492,-16864.85762251,0.00017898,2]
[393354464,1762512632502,-150.99,0.00017997,2]
[393354465,1762512632511,-999.99,0.00017997,2]
[393354466,1762512632520,-500.0,0.00018,2]
[393354467,1762512632529,-850.0,0.00018174,2]
[393354468,1762512632539,-9999.99,0.00018175,2]
[393354470,1762512632548,-2365.3,0.00018175,2]
[393354472,1762512632557,-150.99,0.00018175,2]
[393354474,1762512632566,-151.0,0.00018266,2]
[393354476,1762512632575,-151.0,0.00018266,2]
[393354478,1762512632585,-151.0,0.00018266,2]
[393354480,1762512632593,-151.0,0.00018266,2]
[393354481,1762512632602,-151.0,0.00018266,2]
[393354483,1762512632611,-151.0,0.00018266,2]
[393354485,1762512632621,-151.0,0.00018266,2]
[393354487,1762512632630,-151.0,0.00018266,2]
[393354489,1762512632638,-151.0,0.00018266,2]
[393354491,1762512632647,-151.0,0.00018266,2]
[393354493,1762512632656,-151.0,0.00018266,2]
[393354495,1762512632665,-151.0,0.00018266,2]
[393354497,1762512632674,-151.0,0.00018266,2]
[393354499,1762512632683,-151.0,0.00018266,2]
[393354501,1762512632698,-151.0,0.00018266,2]
[393354503,1762512632708,-151.0,0.00018266,2]
[393354506,1762512632717,-151.0,0.00018266,2]
[393354508,1762512632726,-151.0,0.00018266,2]
[393354510,1762512632735,-151.0,0.00018266,2]
[393354512,1762512632744,-151.0,0.00018266,2]
[393354514,1762512632753,-1682.37748686,0.00018277,2]
[393354516,1762512632764,-309.14,0.00018277,2]
[393354539,1762512638184,-2335.04264213,0.00018277,2]
[393354542,1762512638238,-465.35168686,0.00018277,2]
[393354548,1762512640228,-1010.3076,0.00018277,2]
[393354549,1762512640283,-1000.0,0.00018277,2]
[393354550,1762512640295,-4714.2130574,0.00018277,2]
[393354551,1762512640306,-504.6969957,0.00018277,2]
[393354552,1762512640338,-966.68952,0.00018277,2]
[393354567,1762512643546,-21934.27650696,0.00018277,2]
[393354568,1762512643556,-1000.0,0.00018655,2]
[393354569,1762512643565,-166.66,0.00018665,2]
[393354570,1762512643575,-200.0,0.00018682,2]
[393354571,1762512643584,-557.43795097,0.00018899,2]
[393354572,1762512643593,-166.66,0.00019058,2]
[393354573,1762512643603,-302.60422307,0.00019099,2]
[393354574,1762512643612,-250.0,0.00019099,2]
[393354575,1762512643621,-1445.0,0.00019246,2]
[393354576,1762512643631,-1000.0,0.00019355,2]
[393354577,1762512643640,-496.43844297,0.00019385,2]
[393354578,1762512643650,-166.66,0.00019451,2]
[393354579,1762512643659,-150.0,0.00019464,2]
[393354580,1762512643668,-26747.0,0.00019491,2]
[393354581,1762512643677,-188.62,0.00019504,2]
[393354582,1762512643686,-420.0,0.0001953,2]
[393354583,1762512643695,-195.0,0.00019578,2]
[393354584,1762512643703,-300.0,0.00019578,2]
[393354585,1762512643712,-150.05312085,0.00019578,2]
[393354586,1762512643722,-500.0,0.00019616,2]
[393354587,1762512643731,-1680.0,0.00019626,2]
[393354588,1762512643739,-2000.0,0.000197,2]
[393354589,1762512643749,-4262.34853369,0.00019711,2]
[393354590,1762512643758,-200.0,0.00019726,2]
[393354591,1762512643767,-1895.27,0.0001973,2]
[393354592,1762512643776,-1852.42,0.0001973,2]
[393354593,1762512643785,-500.0,0.00019793,2]
[393354594,1762512643794,-166.66,0.00019844,2]
[393354595,1762512643803,-287.00336851,0.00019919,2]
[393354596,1762512643812,-368.26730181,0.0002,2]
[393354597,1762512643821,-500.0,0.0002,2]
[393354598,1762512643829,-579.12588256,0.0002,2]
[393354599,1762512643838,-1000.0,0.00020055,2]
[393354600,1762512643847,-1705.08534904,0.00020073,2]
[393354601,1762512643856,-500.0,0.0002012,2]
[393354602,1762512643865,-3551.31,0.00020156,2]
[393354603,1762512643874,-166.66,0.00020237,2]
[393354604,1762512643883,-2456.0,0.00020373,2]
[393354605,1762512643892,-250.0,0.00020416,2]
[393354606,1762512643901,-13139.54422207,0.00020473,2]
[393354607,1762512643911,-2280.56,0.00020492,2]
[393354608,1762512643920,-269.0,0.00020573,2]
[393354609,1762512643929,-211.08813927,0.0002061,2]
[393354610,1762512643938,-872.5098526,0.00020616,2]
[393354611,1762512643947,-166.66,0.0002063,2]
[393354612,1762512643956,-462.89187673,0.00020736,2]
[393354613,1762512643966,-1000.0,0.00020754,2]
[393354614,1762512643976,-176.97463282,0.0002083,2]
[393354615,1762512643985,-500.0,0.0002083,2]
[393354616,1762512643995,-500.0,0.0002083,2]
[393354617,1762512644004,-500.0,0.0002083,2]
[393354618,1762512644013,-4589.0625615,0.00020831,2]
[393354619,1762512644022,-38822.07410782,0.00020831,2]
[393354621,1762512646522,-12787.69026251,0.00020831,2]
[393354622,1762512646629,-1559.1665998,0.00020831,2]
[393354623,1762512646735,-20026.0,0.00020831,2]
[393354662,1762513831426,-206.26953728,0.000164,2]
[393354663,1762513831437,-165.83,0.00016436,2]
[393354664,1762513831447,-500.0,0.00016436,2]
[393354665,1762513831458,-500.0,0.00016436,2]
[393354666,1762513831468,-380.06991727,0.00016436,2]
[393354667,1762513831479,-195.0,0.00016472,2]
[393354668,1762513831489,-375.64157914,0.000165,2]
[393354669,1762513831499,-1200.0,0.00016507,2]
[393354670,1762513831508,-1594.46,0.00016508,2]
[393354671,1762513831518,-300.0,0.00016998,2]
[393354672,1762513831528,-250.0,0.00017,2]
[393354673,1762513831537,-500.0,0.00017616,2]
[393354674,1762513831546,-300.0,0.0001804,2]
[393354675,1762513831556,-300.0,0.00018079,2]
[393354676,1762513831565,-195.0,0.00018079,2]
[393354677,1762513831574,-300.0,0.00018079,2]
[393354678,1762513831588,-250.0,0.00018079,2]
[393354679,1762513831598,-1680.0,0.00018129,2]
[393354680,1762513831607,-500.0,0.00018274,2]
[393354681,1762513831616,-424.11855518,0.00018346,2]
[393354682,1762513831626,-322.19788709,0.00018354,2]
[393354683,1762513831635,-579.95619676,0.00018354,2]
[393354684,1762513831645,-314.16785081,0.00018354,2]
[393354685,1762513831654,-420.0,0.00018566,2]
[393354686,1762513831663,-500.0,0.00018685,2]
[393354687,1762513831673,-300.0,0.00019,2]
[393354688,1762513831683,-316.63,0.00019159,2]
[393354689,1762513831692,-333.04553938,0.0001932,2]
[393354690,1762513831701,-999.0,0.0001944,3]
[393354691,1762513831711,-352.27,0.00019464,2]
[393354692,1762513831720,-999.99,0.00019464,2]
[393354693,1762513831729,-477.99034883,0.00019497,2]
[393354694,1762513831742,-166.66,0.00019522,2]
[393354695,1762513831752,-2000.0,0.000197,2]
[393354697,1762513831761,-165.0,0.00019873,2]
[393354699,1762513831771,-5755.46,0.00019873,2]
[393354702,1762513831781,-150.99,0.00019873,2]
[393354704,1762513831794,-2351.0,0.00019909,2]
[393354706,1762513831803,-2751.0,0.00019958,2]
[393354708,1762513831815,-502.0,0.0002,2]
[393354735,1762513832078,-228.0,0.00020004,2]
[393354736,1762513832088,-282.21986029,0.00020005,2]
[393354737,1762513832261,-1210.56013971,0.00020005,2]
[393354738,1762513832270,-418.3842786,0.00020117,2]
[393354739,1762513832287,-66.1257214,0.00020117,2]
[393354740,1762513832296,-166.66,0.00020166,2]
[393354741,1762513832305,-717.47974054,0.00020267,2]
[393354742,1762513832321,-1531.77238491,0.00020267,2]
[393354743,1762513832332,-414.9125,0.00020267,2]
[393354744,1762513832343,-628.42,0.00020267,2]
[393354745,1762513832354,-9034.22787455,0.00020267,2]
[393354746,1762513832363,-587.0,0.00020278,2]
[393354747,1762513832372,-151.0,0.00020355,2]
[393354748,1762513832381,-151.0,0.00020355,2]
[393354749,1762513832390,-151.0,0.00020355,2]
[393354750,1762513832399,-151.0,0.00020355,2]
[393354751,1762513832408,-151.0,0.00020355,2]
[393354752,1762513832417,-151.0,0.00020355,2]
[393354753,1762513832427,-151.0,0.00020355,2]
[393354754,1762513832436,-151.0,0.00020355,2]
[393354755,1762513832445,-151.0,0.00020355,2]
[393354756,1762513832457,-151.0,0.00020355,2]
[393354757,1762513832467,-152.05547154,0.00020355,2]
[393354758,1762513832478,-500.0,0.00020366,2]
[393354759,1762513832487,-500.0,0.00020366,2]
[393354760,1762513832497,-500.0,0.00020366,2]
[393354761,1762513832506,-500.0,0.00020366,2]
[393354762,1762513832515,-3173.8159643,0.00020367,2]
[393354763,1762513832524,-87485.4798836,0.00020367,2]
[393354764,1762513832533,-6809.931808,0.00020367,2]
[393354765,1762513832542,-624.8538194,0.00020367,2]
[393354766,1762513832551,-36200.21939277,0.00020367,2]
[393354767,1762513832563,-85894.38544716,0.00020367,2]
[393354768,1762513832573,-420.26169723,0.00020367,2]
[393354769,1762513832584,-5252.49056302,0.00020367,2]
[393354772,1762513837463,-254.1545887,0.00020367,2]
[393354798,1762513839410,-503.3,0.00020367,2]
[393354800,1762513839817,-6567.87657746,0.00020367,2]
[393354801,1762513839833,-359.29449554,0.00020367,2]
[393354832,1762513843135,-3721.6,0.00020367,2]
[393354833,1762513843398,-345.69,0.00020367,2]
[393354834,1762513843453,-7997.92323472,0.00020367,2]
[393354835,1762513843464,-1252.4342357,0.00020367,2]
[393354836,1762513843476,-40379.0487253,0.00020367,2]
[393354837,1762513843490,-500.0,0.00020373,2]
[393354838,1762513843500,-11949.20302169,0.00020381,2]
[393354839,1762513843512,-343.55677052,0.0002071,2]
[393354840,1762513843524,-23791.9048,0.00020731,2]
[393354841,1762513843537,-8021.09432619,0.00020731,2]
[393354843,1762513843548,-520.77805458,0.00020731,2]
[393354845,1762513843559,-500.0,0.00020743,2]
[393354846,1762513843571,-500.0,0.00020773,2]
[393354847,1762513843581,-500.0,0.00020773,2]
[393354848,1762513843592,-500.0,0.00020773,2]
[393354849,1762513843602,-500.0,0.00020773,2]
[393354850,1762513843612,-2106.6957,0.00020795,2]
[393354851,1762513843622,-500.0,0.00020799,2]
[393354852,1762513843632,-500.0,0.00020799,2]
[393354853,1762513843644,-159124.41497443,0.000208,2]
[393354855,1762513845607,-410.96302396,0.0001886,2]
[393354856,1762513845619,-410.96302396,0.00019653,2]
[393354857,1762513845630,-410.96302396,0.00020446,2]
[393354858,1762513845641,-340918.08492257,0.000208,2]
[393354859,1762513845651,-166.66,0.0002081,2]
[393354860,1762513845663,-1017.2501,0.0002083,2]
[393354861,1762513845673,-500.0,0.0002083,2]
[393354862,1762513845683,-1789.02943637,0.00020831,2]
[393354863,1762513845694,-163959.04456926,0.00020831,2]
[393354864,1762513845707,-441.61216989,0.00020831,2]
[393354865,1762513845719,-323.44788116,0.00020831,2]
[393354866,1762513845769,-603.24966002,0.00020831,2]
[393354867,1762513845782,-574.87268919,0.00020831,2]
[393354868,1762513845826,-20094.01153004,0.00020831,2]
[393354869,1762513845841,-20026.0,0.00020831,2]
[393354870,1762513846090,-468.65005224,0.00020831,2]
[393354899,1762514147806,665.94,0.00013699,2]
[393354900,1762514263576,160.82227907,0.00038711,120]
[393354901,1762514419389,177.74,0.00010048,2]
[393354902,1762514419630,177.74,0.00010556,2]
[393354903,1762514419821,177.74,0.00011064,2]
[393354904,1762514420043,177.74,0.00011573,2]
[393354905,1762514420251,177.74,0.00012081,2]
[393354906,1762514420469,177.74,0.00012589,2]
[393354907,1762514420705,177.74,0.00013097,2]
[393354908,1762514420891,177.74,0.00013605,2]
[393354909,1762514421104,177.74,0.00014113,2]
[393354910,1762514421510,177.74,0.00014621,2]
[393354915,1762514682537,188.62,0.00028543,120]
[393354934,1762514719655,616.35851672,9e-05,2]
[393354936,1762514830503,500.0,0.00038713,120]
[393354937,1762514831118,500.0,0.00038713,120]
[393354938,1762514831736,500.0,0.00038713,120]
[393354939,1762514832350,500.0,0.00038713,120]
[393354940,1762514832967,500.0,0.00038713,120]
[393354941,1762514837398,1000.0,0.000179,3]
[393354942,1762514885449,1000.0,0.00038713,30]
[393354943,1762514888409,186.59130588,0.000135,2]
[393354944,1762514895588,1915.67232203,0.0001,2]
[393354945,1762514897410,388.33777044,7.888e-05,2]
[393354946,1762514907052,2712.4922868,0.0001,2]
[393354947,1762514917080,8290.73176807,0.0001,2]
[393354948,1762514920505,1342.99963101,0.00013699,2]
[393354972,1762515031556,-177.74,0.00015129,2]
[393354974,1762515031565,-257.33364253,0.00015538,2]
[393354976,1762515031574,-177.74,0.00015637,2]
[393354978,1762515031583,-177.74,0.00016146,2]
[393354979,1762515031592,-195.0,0.00016642,2]
[393354980,1762515031602,-250.0,0.00016642,2]
[393354981,1762515031611,-177.74,0.00016654,2]
[393354982,1762515031620,-177.74,0.00017162,2]
[393354983,1762515031629,-1127.21,0.00017352,2]
[393354984,1762515031641,-250.0,0.00017443,2]
[393354985,1762515031651,-177.74,0.0001767,2]
[393354986,1762515031660,-357.1,0.00017864,2]
[393354987,1762515031669,-300.0,0.00017899,2]
[393354988,1762515031678,-300.0,0.00017899,2]
[393354989,1762515031688,-1200.0,0.00017899,2]
[393354990,1762515031697,-1000.0,0.000179,2]
[393354991,1762515031707,-1000.0,0.000179,2]
[393354992,1762515031716,-1000.0,0.000179,2]
[393354993,1762515031727,-1000.0,0.000179,2]
[393354994,1762515031737,-474.0,0.000179,2]
[393354995,1762515031746,-500.0,0.00017973,2]
[393354996,1762515031755,-500.0,0.00017973,2]
[393354997,1762515031765,-500.0,0.00017973,2]
[393354998,1762515031774,-500.0,0.00017973,2]
[393354999,1762515031784,-502.54057635,0.00017973,2]
[393355000,1762515031793,-500.0,0.00017973,2]
[393355001,1762515031803,-500.0,0.00017973,2]
[393355002,1762515031812,-348.22975332,0.00017978,2]
[393355003,1762515031821,-274.43182273,0.00017983,2]
[393355004,1762515031831,-151.0,0.00017997,2]
[393355005,1762515031842,-550.0,0.00017998,2]
[393355006,1762515031851,-160.87,0.00017999,2]
[393355007,1762515031860,-501.44460791,0.00017999,2]
[393355008,1762515031869,-500.0,0.00017999,2]
[393355009,1762515031878,-500.0,0.00017999,2]
[393355010,1762515031888,-599.65222191,0.00017999,2]
[393355012,1762515031897,-500.0,0.00017999,2]
[393355014,1762515031906,-154.88640384,0.00017999,2]
[393355016,1762515031915,-500.0,0.00017999,2]
[393355018,1762515031924,-37825.60652945,0.00018,2]
[393355022,1762515031955,-260.0,0.00018,2]
[393355025,1762515031966,-509.33266233,0.00018,2]
[393355027,1762515031980,-93959.46632,0.00018,2]